[Event "Titled Tuesday Blitz May 25 2021"]
[White "Abdusattorov, Nodirbek"]
[Black "Ozen, Bahadir"]
[WhiteFideId "14204118"]
[BlackFideId "6337058"]
[WhiteElo "2662"]
[BlackElo "2503"]
[Result "1/2-1/2"]
[Round "03"]
[TimeControl "180+1"]
[Date "2021.05.25"]
[WhiteClock "0:00:06"]
[BlackClock "0:00:22"]

1. Nf3 {[%clk 0:03:00]}  d5 {[%clk 0:02:59]} 2. b3 {[%clk 0:03:00]}  Bf5 {[%clk 0:02:58]} 3. Bb2 {[%clk 0:03:00]}  e6 {[%clk 0:02:58]} 4. e3 {[%clk 0:02:59]}  Nf6 {[%clk 0:02:59]} 5. Be2 {[%clk 0:02:58]}  h6 {[%clk 0:02:58]} 6. O-O {[%clk 0:02:59]}  Be7 {[%clk 0:02:57]} 7. d3 {[%clk 0:02:59]}  O-O {[%clk 0:02:57]} 8. Nbd2 {[%clk 0:03:00]}  Bh7 {[%clk 0:02:57]} 9. c4 {[%clk 0:02:59]}  a5 {[%clk 0:02:47]} 10. a3 {[%clk 0:02:59]}  c6 {[%clk 0:02:45]} 11. Qc2 {[%clk 0:02:59]}  Nbd7 {[%clk 0:02:45]} 12. Bc3 {[%clk 0:02:59]}  Bd6 {[%clk 0:02:42]} 13. Qb2 {[%clk 0:02:58]}  Qe7 {[%clk 0:02:41]} 14. b4 {[%clk 0:02:58]}  axb4 {[%clk 0:02:42]} 15. axb4 {[%clk 0:02:58]}  e5 {[%clk 0:02:40]} 16. d4 {[%clk 0:02:56]}  exd4 {[%clk 0:02:22]} 17. Nxd4 {[%clk 0:02:53]}  Ne5 {[%clk 0:02:23]} 18. c5 {[%clk 0:02:50]}  Bc7 {[%clk 0:02:23]} 19. N4f3 {[%clk 0:02:51]}  Ned7 {[%clk 0:01:46]} 20. Bd4 {[%clk 0:02:47]}  Bf5 {[%clk 0:01:46]} 21. Rfc1 {[%clk 0:02:27]}  Rfe8 {[%clk 0:01:45]} 22. b5 {[%clk 0:02:26]}  Rxa1 {[%clk 0:01:08]} 23. Qxa1 {[%clk 0:02:27]}  Ne5 {[%clk 0:01:09]} 24. Nxe5 {[%clk 0:02:17]}  Bxe5 {[%clk 0:01:10]} 25. Bxe5 {[%clk 0:02:15]}  Qxe5 {[%clk 0:01:11]} 26. Qxe5 {[%clk 0:02:16]}  Rxe5 {[%clk 0:01:12]} 27. Nf3 {[%clk 0:02:17]}  Re8 {[%clk 0:01:09]} 28. Nd4 {[%clk 0:02:17]}  Bd7 {[%clk 0:01:09]} 29. Bd3 {[%clk 0:01:46]}  g6 {[%clk 0:01:06]} 30. h3 {[%clk 0:01:40]}  Ra8 {[%clk 0:01:05]} 31. f3 {[%clk 0:01:40]}  h5 {[%clk 0:01:03]} 32. Kf2 {[%clk 0:01:40]}  Kf8 {[%clk 0:01:03]} 33. Rb1 {[%clk 0:01:37]}  Ra2+ {[%clk 0:01:03]} 34. Kg3 {[%clk 0:01:26]}  h4+ {[%clk 0:00:47]} 35. Kh2 {[%clk 0:01:15]}  Ra3 {[%clk 0:00:47]} 36. bxc6 {[%clk 0:01:15]}  Bxc6 {[%clk 0:00:42]} 37. Bb5 {[%clk 0:01:01]}  Nd7 {[%clk 0:00:41]} 38. Bxc6 {[%clk 0:00:37]}  bxc6 {[%clk 0:00:41]} 39. Nxc6 {[%clk 0:00:33]}  Nxc5 {[%clk 0:00:41]} 40. Re1 {[%clk 0:00:28]}  Ne6 {[%clk 0:00:41]} 41. Kg1 {[%clk 0:00:27]}  Ra2 {[%clk 0:00:40]} 42. Kf1 {[%clk 0:00:26]}  Rc2 {[%clk 0:00:39]} 43. Nb4 {[%clk 0:00:26]}  Rd2 {[%clk 0:00:38]} 44. Re2 {[%clk 0:00:27]}  Rd1+ {[%clk 0:00:38]} 45. Re1 {[%clk 0:00:23]}  Rd2 {[%clk 0:00:39]} 46. Re2 {[%clk 0:00:18]}  Rd1+ {[%clk 0:00:39]} 47. Kf2 {[%clk 0:00:19]}  d4 {[%clk 0:00:34]} 48. Ra2 {[%clk 0:00:18]}  dxe3+ {[%clk 0:00:34]} 49. Kxe3 {[%clk 0:00:18]}  Rb1 {[%clk 0:00:34]} 50. Nd5 {[%clk 0:00:17]}  Kg7 {[%clk 0:00:32]} 51. Nc3 {[%clk 0:00:16]}  Rb3 {[%clk 0:00:33]} 52. Rc2 {[%clk 0:00:12]}  Ra3 {[%clk 0:00:33]} 53. Ke4 {[%clk 0:00:11]}  Ng5+ {[%clk 0:00:32]} 54. Kd5 {[%clk 0:00:10]}  Ne6 {[%clk 0:00:33]} 55. Ne4 {[%clk 0:00:10]}  Ra5+ {[%clk 0:00:31]} 56. Kd6 {[%clk 0:00:09]}  Ra6+ {[%clk 0:00:32]} 57. Ke5 {[%clk 0:00:09]}  Ra5+ {[%clk 0:00:29]} 58. Kd6 {[%clk 0:00:10]}  Ra6+ {[%clk 0:00:29]} 59. Kd5 {[%clk 0:00:10]}  Ra5+ {[%clk 0:00:28]} 60. Kc4 {[%clk 0:00:10]}  Nf4 {[%clk 0:00:28]} 61. Rb2 {[%clk 0:00:09]}  Ra7 {[%clk 0:00:26]} 62. Kd4 {[%clk 0:00:08]}  Rd7+ {[%clk 0:00:26]} 63. Ke3 {[%clk 0:00:08]}  Ne6 {[%clk 0:00:26]} 64. Ra2 {[%clk 0:00:06]}  Rb7 {[%clk 0:00:26]} 65. Nd6 {[%clk 0:00:07]}  Rb3+ {[%clk 0:00:26]} 66. Kf2 {[%clk 0:00:07]}  Rb6 {[%clk 0:00:26]} 67. Nc4 {[%clk 0:00:06]}  Rc6 {[%clk 0:00:26]} 68. Ne5 {[%clk 0:00:06]}  Rc5 {[%clk 0:00:27]} 69. Nd3 {[%clk 0:00:06]}  Rc3 {[%clk 0:00:27]} 70. Ke2 {[%clk 0:00:05]}  Rc7 {[%clk 0:00:26]} 71. Ke3 {[%clk 0:00:05]}  Re7 {[%clk 0:00:26]} 72. Kf2 {[%clk 0:00:05]}  Rb7 {[%clk 0:00:26]} 73. Ra4 {[%clk 0:00:05]}  Rb3 {[%clk 0:00:22]} 74. Ne5 {[%clk 0:00:03]}  Rb2+ {[%clk 0:00:22]} 75. Kf1 {[%clk 0:00:03]}  Rb5 {[%clk 0:00:23]} 76. Nc6 {[%clk 0:00:03]}  Rc5 {[%clk 0:00:21]} 77. Ne7 {[%clk 0:00:03]}  Rc7 {[%clk 0:00:18]} 78. Nd5 {[%clk 0:00:03]}  Rc5 {[%clk 0:00:19]} 79. Ne3 {[%clk 0:00:03]}  Rc7 {[%clk 0:00:19]} 80. Rxh4 {[%clk 0:00:02]}  Rc3 {[%clk 0:00:18]} 81. Kf2 {[%clk 0:00:02]}  Ra3 {[%clk 0:00:18]} 82. Rc4 {[%clk 0:00:03]}  Ra2+ {[%clk 0:00:18]} 83. Kg3 {[%clk 0:00:02]}  Ra5 {[%clk 0:00:19]} 84. h4 {[%clk 0:00:02]}  Ra3 {[%clk 0:00:19]} 85. Kf2 {[%clk 0:00:03]}  Ra2+ {[%clk 0:00:19]} 86. Rc2 {[%clk 0:00:03]}  Ra3 {[%clk 0:00:19]} 87. g3 {[%clk 0:00:03]}  Nd4 {[%clk 0:00:19]} 88. Rd2 {[%clk 0:00:04]}  Ne6 {[%clk 0:00:19]} 89. Nc4 {[%clk 0:00:04]}  Rc3 {[%clk 0:00:18]} 90. Ne5 {[%clk 0:00:04]}  Rc5 {[%clk 0:00:19]} 91. f4 {[%clk 0:00:05]}  Rc7 {[%clk 0:00:16]} 92. Kf3 {[%clk 0:00:05]}  Rc3+ {[%clk 0:00:16]} 93. Kf2 {[%clk 0:00:05]}  Rc7 {[%clk 0:00:17]} 94. Kf3 {[%clk 0:00:06]}  Rc3+ {[%clk 0:00:16]} 95. Rd3 {[%clk 0:00:06]}  Rc7 {[%clk 0:00:17]} 96. Rd7 {[%clk 0:00:06]}  Rxd7 {[%clk 0:00:17]} 97. Nxd7 {[%clk 0:00:07]}  f5 {[%clk 0:00:17]} 98. Ne5 {[%clk 0:00:07]}  Kf6 {[%clk 0:00:17]} 99. Ke3 {[%clk 0:00:07]}  Ng7 {[%clk 0:00:17]} 100. Nc4 {[%clk 0:00:06]}  Nh5 {[%clk 0:00:17]} 101. Kf3 {[%clk 0:00:07]}  Ke6 {[%clk 0:00:17]} 102. Ne5 {[%clk 0:00:07]}  Kf6 {[%clk 0:00:18]} 103. Nc6 {[%clk 0:00:07]}  Ke6 {[%clk 0:00:18]} 104. Kf2 {[%clk 0:00:07]}  Kf6 {[%clk 0:00:18]} 105. Nd4 {[%clk 0:00:07]}  Ng7 {[%clk 0:00:18]} 106. Ke3 {[%clk 0:00:07]}  Nh5 {[%clk 0:00:18]} 107. Ne2 {[%clk 0:00:07]}  Ke6 {[%clk 0:00:19]} 108. Kd4 {[%clk 0:00:07]}  Kd6 {[%clk 0:00:19]} 109. Kc4 {[%clk 0:00:06]}  Kc6 {[%clk 0:00:20]} 110. Kd4 {[%clk 0:00:05]}  Kd6 {[%clk 0:00:20]} 111. Ke3 {[%clk 0:00:05]}  Ke6 {[%clk 0:00:20]} 112. Kf3 {[%clk 0:00:05]}  Kf6 {[%clk 0:00:21]} 113. Nc1 {[%clk 0:00:05]}  Ke6 {[%clk 0:00:21]} 114. Nd3 {[%clk 0:00:05]}  Kf6 {[%clk 0:00:21]} 115. Nc5 {[%clk 0:00:05]}  Ng7 {[%clk 0:00:22]} 116. g4 {[%clk 0:00:04]}  fxg4+ {[%clk 0:00:22]} 117. Kxg4 {[%clk 0:00:05]}  Nf5 {[%clk 0:00:20]} 118. Nd7+ {[%clk 0:00:05]}  Ke7 {[%clk 0:00:20]} 119. Ne5 {[%clk 0:00:04]}  Kf6 {[%clk 0:00:20]} 120. Nd7+ {[%clk 0:00:04]}  Ke7 {[%clk 0:00:20]} 121. Nb6 {[%clk 0:00:04]}  Kf6 {[%clk 0:00:18]} 122. Na4 {[%clk 0:00:04]}  Nh6+ {[%clk 0:00:18]} 123. Kf3 {[%clk 0:00:03]}  Nf5 {[%clk 0:00:19]} 124. Nc5 {[%clk 0:00:03]}  Nxh4+ {[%clk 0:00:19]} 125. Kg4 {[%clk 0:00:04]}  Nf5 {[%clk 0:00:20]} 126. Ne4+ {[%clk 0:00:04]}  Kg7 {[%clk 0:00:20]} 127. Kg5 {[%clk 0:00:05]}  Nd4 {[%clk 0:00:20]} 128. Nd6 {[%clk 0:00:05]}  Ne6+ {[%clk 0:00:19]} 129. Kg4 {[%clk 0:00:06]}  Kf6 {[%clk 0:00:20]} 130. Ne4+ {[%clk 0:00:06]}  Kg7 {[%clk 0:00:20]} 131. Ng5 {[%clk 0:00:06]}  Nxf4 {[%clk 0:00:19]} 132. Kxf4 {[%clk 0:00:06]}  Kf6 {[%clk 0:00:19]} 133. Ne4+ {[%clk 0:00:06]}  Ke7 {[%clk 0:00:20]} 134. Kg5 {[%clk 0:00:07]}  Kd8 {[%clk 0:00:21]} 135. Nd6 {[%clk 0:00:06]}  Kd7 {[%clk 0:00:20]} 136. Nf7 {[%clk 0:00:06]}  Kc6 {[%clk 0:00:21]} 137. Ne5+ {[%clk 0:00:06]}  Kc5 {[%clk 0:00:22]} 138. Nxg6 {[%clk 0:00:06]} 1/2-1/2


[Site "https://www.chess.com"]

[Event "Titled Tuesday Blitz May 25 2021"]
[White "Andreikin, Dmitry"]
[Black "Rosenberg, Evan S"]
[WhiteFideId "4158814"]
[BlackFideId "2019299"]
[WhiteElo "2782"]
[BlackElo "2164"]
[Result "1-0"]
[Round "03"]
[TimeControl "180+1"]
[Date "2021.05.25"]
[WhiteClock "0:01:39"]
[BlackClock "0:00:01"]

1. d4 {[%clk 0:03:00]}  d5 {[%clk 0:02:58]} 2. c4 {[%clk 0:03:00]}  c6 {[%clk 0:02:58]} 3. Nf3 {[%clk 0:02:59]}  Nf6 {[%clk 0:02:58]} 4. e3 {[%clk 0:02:59]}  e6 {[%clk 0:02:58]} 5. Nbd2 {[%clk 0:02:58]}  Be7 {[%clk 0:02:45]} 6. Bd3 {[%clk 0:02:57]}  O-O {[%clk 0:02:37]} 7. O-O {[%clk 0:02:57]}  c5 {[%clk 0:02:35]} 8. b3 {[%clk 0:02:55]}  Nc6 {[%clk 0:02:34]} 9. Bb2 {[%clk 0:02:54]}  a6 {[%clk 0:02:30]} 10. dxc5 {[%clk 0:02:53]}  Bxc5 {[%clk 0:02:30]} 11. Rc1 {[%clk 0:02:51]}  Ba7 {[%clk 0:02:28]} 12. Ng5 {[%clk 0:02:42]}  d4 {[%clk 0:02:22]} 13. exd4 {[%clk 0:02:38]}  Bxd4 {[%clk 0:02:14]} 14. Bxd4 {[%clk 0:02:38]}  Qxd4 {[%clk 0:02:14]} 15. Ndf3 {[%clk 0:02:35]}  Qg4 {[%clk 0:01:59]} 16. h3 {[%clk 0:02:27]}  Qh5 {[%clk 0:01:47]} 17. Ne4 {[%clk 0:02:04]}  Nxe4 {[%clk 0:01:31]} 18. Bxe4 {[%clk 0:02:05]}  e5 {[%clk 0:00:54]} 19. Re1 {[%clk 0:01:57]}  Be6 {[%clk 0:00:37]} 20. Bxc6 {[%clk 0:01:54]}  bxc6 {[%clk 0:00:34]} 21. Nxe5 {[%clk 0:01:54]}  Qg5 {[%clk 0:00:23]} 22. Qf3 {[%clk 0:01:54]}  c5 {[%clk 0:00:14]} 23. Qe3 {[%clk 0:01:52]}  Qxe3 {[%clk 0:00:10]} 24. Rxe3 {[%clk 0:01:53]}  a5 {[%clk 0:00:09]} 25. Nd3 {[%clk 0:01:50]}  Rfc8 {[%clk 0:00:08]} 26. Re5 {[%clk 0:01:50]}  a4 {[%clk 0:00:07]} 27. Nxc5 {[%clk 0:01:48]}  axb3 {[%clk 0:00:04]} 28. axb3 {[%clk 0:01:49]}  Ra5 {[%clk 0:00:03]} 29. b4 {[%clk 0:01:48]}  Ra2 {[%clk 0:00:03]} 30. Nxe6 {[%clk 0:01:47]}  fxe6 {[%clk 0:00:04]} 31. Rxe6 {[%clk 0:01:47]}  Rd8 {[%clk 0:00:04]} 32. Re3 {[%clk 0:01:41]}  Rdd2 {[%clk 0:00:03]} 33. Rf3 {[%clk 0:01:41]}  Rab2 {[%clk 0:00:03]} 34. b5 {[%clk 0:01:39]}  h5 {[%clk 0:00:02]} 35. h4 {[%clk 0:01:39]}  Kh7 {[%clk 0:00:02]} 36. g3 {[%clk 0:01:40]}  Kg6 {[%clk 0:00:02]} 37. Rf4 {[%clk 0:01:40]}  Kh6 {[%clk 0:00:01]} 38. Kg2 {[%clk 0:01:40]}  Kg6 {[%clk 0:00:01]} 39. Re1 {[%clk 0:01:39]} 1-0


[Site "https://www.chess.com"]

[Event "Titled Tuesday Blitz May 25 2021"]
[White "Aradhya, Garg"]
[Black "Kovalev, Vladislav"]
[WhiteFideId "25006746"]
[BlackFideId "13504398"]
[WhiteElo "2146"]
[BlackElo "2573"]
[Result "0-1"]
[Round "03"]
[TimeControl "180+1"]
[Date "2021.05.25"]
[WhiteClock "0:00:05"]
[BlackClock "0:00:13"]

1. d4 {[%clk 0:03:00]}  Nf6 {[%clk 0:03:00]} 2. c4 {[%clk 0:03:01]}  g6 {[%clk 0:03:00]} 3. g3 {[%clk 0:03:01]}  Bg7 {[%clk 0:03:00]} 4. Bg2 {[%clk 0:03:02]}  O-O {[%clk 0:03:01]} 5. Nc3 {[%clk 0:03:01]}  d6 {[%clk 0:03:02]} 6. Nf3 {[%clk 0:03:00]}  Nc6 {[%clk 0:03:03]} 7. O-O {[%clk 0:03:00]}  e5 {[%clk 0:03:03]} 8. d5 {[%clk 0:02:58]}  Nb8 {[%clk 0:03:04]} 9. e4 {[%clk 0:02:52]}  a5 {[%clk 0:03:04]} 10. Bg5 {[%clk 0:02:52]}  h6 {[%clk 0:03:01]} 11. Bd2 {[%clk 0:02:52]}  Na6 {[%clk 0:03:01]} 12. Ne1 {[%clk 0:02:51]}  Nc5 {[%clk 0:03:01]} 13. Rc1 {[%clk 0:02:48]}  Ne8 {[%clk 0:02:47]} 14. Be3 {[%clk 0:02:45]}  b6 {[%clk 0:02:47]} 15. Qd2 {[%clk 0:02:40]}  Kh7 {[%clk 0:02:48]} 16. f4 {[%clk 0:02:14]}  exf4 {[%clk 0:02:48]} 17. gxf4 {[%clk 0:02:14]}  f5 {[%clk 0:02:48]} 18. e5 {[%clk 0:02:04]}  dxe5 {[%clk 0:02:49]} 19. fxe5 {[%clk 0:02:03]}  Bxe5 {[%clk 0:02:50]} 20. Bxh6 {[%clk 0:02:03]}  Bxh2+ {[%clk 0:02:43]} 21. Kxh2 {[%clk 0:01:53]}  Qh4+ {[%clk 0:02:43]} 22. Kg1 {[%clk 0:01:38]}  Qxh6 {[%clk 0:02:44]} 23. Qxh6+ {[%clk 0:01:34]}  Kxh6 {[%clk 0:02:45]} 24. Nf3 {[%clk 0:01:34]}  Nd6 {[%clk 0:02:43]} 25. Nd4 {[%clk 0:01:32]}  Bd7 {[%clk 0:02:41]} 26. b3 {[%clk 0:01:10]}  Rae8 {[%clk 0:02:41]} 27. Rce1 {[%clk 0:01:09]}  Kg7 {[%clk 0:02:28]} 28. a3 {[%clk 0:00:53]}  Kf6 {[%clk 0:02:27]} 29. Bh3 {[%clk 0:00:30]}  Rxe1 {[%clk 0:02:25]} 30. Rxe1 {[%clk 0:00:30]}  Re8 {[%clk 0:02:26]} 31. Rxe8 {[%clk 0:00:26]}  Bxe8 {[%clk 0:02:27]} 32. b4 {[%clk 0:00:25]}  axb4 {[%clk 0:02:26]} 33. axb4 {[%clk 0:00:25]}  Nd3 {[%clk 0:02:27]} 34. Ne6 {[%clk 0:00:25]}  c5 {[%clk 0:01:42]} 35. bxc5 {[%clk 0:00:17]}  Nxc5 {[%clk 0:01:43]} 36. Nc7 {[%clk 0:00:17]}  Bd7 {[%clk 0:01:40]} 37. Bf1 {[%clk 0:00:17]}  Ke5 {[%clk 0:01:39]} 38. Kf2 {[%clk 0:00:17]}  Kd4 {[%clk 0:01:37]} 39. Ne2+ {[%clk 0:00:17]}  Ke5 {[%clk 0:01:35]} 40. Ng1 {[%clk 0:00:17]}  Nde4+ {[%clk 0:01:32]} 41. Ke3 {[%clk 0:00:17]}  g5 {[%clk 0:01:32]} 42. Nf3+ {[%clk 0:00:15]}  Kd6 {[%clk 0:01:32]} 43. Na8 {[%clk 0:00:15]}  Na4 {[%clk 0:01:32]} 44. Kd4 {[%clk 0:00:14]}  Bc8 {[%clk 0:01:15]} 45. Bd3 {[%clk 0:00:13]}  Nec5 {[%clk 0:00:53]} 46. Nxg5 {[%clk 0:00:11]}  Nxd3 {[%clk 0:00:47]} 47. Kxd3 {[%clk 0:00:11]}  Bb7 {[%clk 0:00:48]} 48. Nxb6 {[%clk 0:00:10]}  Nxb6 {[%clk 0:00:49]} 49. Kd4 {[%clk 0:00:10]}  Nd7 {[%clk 0:00:38]} 50. Ne6 {[%clk 0:00:08]}  Ke7 {[%clk 0:00:30]} 51. c5 {[%clk 0:00:08]}  Nf6 {[%clk 0:00:20]} 52. c6 {[%clk 0:00:07]}  Bc8 {[%clk 0:00:18]} 53. Ke5 {[%clk 0:00:08]}  Nxd5 {[%clk 0:00:17]} 54. Nd4 {[%clk 0:00:07]}  Ne3 {[%clk 0:00:12]} 55. c7 {[%clk 0:00:05]}  Nc4+ {[%clk 0:00:10]} 56. Kf4 {[%clk 0:00:05]}  Kf6 {[%clk 0:00:11]} 57. Nb5 {[%clk 0:00:05]}  Bd7 {[%clk 0:00:10]} 58. Na7 {[%clk 0:00:05]}  Nd6 {[%clk 0:00:10]} 59. Ke3 {[%clk 0:00:04]}  Nc8 {[%clk 0:00:10]} 60. Nxc8 {[%clk 0:00:03]}  Bxc8 {[%clk 0:00:11]} 61. Kf4 {[%clk 0:00:04]}  Ke6 {[%clk 0:00:11]} 62. Ke3 {[%clk 0:00:04]}  Kd6 {[%clk 0:00:12]} 63. Kf4 {[%clk 0:00:05]}  Kxc7 {[%clk 0:00:13]} 0-1


[Site "https://www.chess.com"]

[Event "Titled Tuesday Blitz May 25 2021"]
[White "Araujo Sanchez, Josue"]
[Black "Bortnyk, Olexandr"]
[WhiteFideId "6416896"]
[BlackFideId "14120828"]
[WhiteElo "2140"]
[BlackElo "2723"]
[Result "1-0"]
[Round "03"]
[TimeControl "180+1"]
[Date "2021.05.25"]
[WhiteClock "0:00:08"]
[BlackClock "0:00:05"]

1. Nf3 {[%clk 0:03:00]}  Nf6 {[%clk 0:02:59]} 2. c4 {[%clk 0:03:01]}  d6 {[%clk 0:02:58]} 3. b3 {[%clk 0:03:01]}  e5 {[%clk 0:02:58]} 4. Bb2 {[%clk 0:03:02]}  Nc6 {[%clk 0:02:53]} 5. g3 {[%clk 0:03:02]}  Bg4 {[%clk 0:02:44]} 6. Bg2 {[%clk 0:03:01]}  Qd7 {[%clk 0:02:45]} 7. h3 {[%clk 0:03:01]}  Bxf3 {[%clk 0:02:45]} 8. Bxf3 {[%clk 0:03:01]}  g6 {[%clk 0:02:43]} 9. d3 {[%clk 0:03:01]}  Bg7 {[%clk 0:02:43]} 10. Nc3 {[%clk 0:03:01]}  O-O {[%clk 0:02:42]} 11. Bg2 {[%clk 0:03:02]}  a6 {[%clk 0:02:39]} 12. O-O {[%clk 0:03:01]}  Rab8 {[%clk 0:02:36]} 13. Rc1 {[%clk 0:03:02]}  Nh5 {[%clk 0:02:33]} 14. e3 {[%clk 0:02:43]}  f5 {[%clk 0:02:32]} 15. Nd5 {[%clk 0:02:38]}  Ne7 {[%clk 0:02:12]} 16. Nxe7+ {[%clk 0:02:33]}  Qxe7 {[%clk 0:02:12]} 17. Qe2 {[%clk 0:02:32]}  c6 {[%clk 0:02:08]} 18. b4 {[%clk 0:02:24]}  Qd7 {[%clk 0:02:01]} 19. a4 {[%clk 0:02:23]}  Rbe8 {[%clk 0:01:53]} 20. Qc2 {[%clk 0:02:19]}  f4 {[%clk 0:01:52]} 21. g4 {[%clk 0:02:13]}  Bh6 {[%clk 0:01:05]} 22. Qe2 {[%clk 0:02:01]}  Ng7 {[%clk 0:00:57]} 23. b5 {[%clk 0:01:55]}  Ne6 {[%clk 0:00:50]} 24. bxc6 {[%clk 0:01:44]}  bxc6 {[%clk 0:00:50]} 25. Ba1 {[%clk 0:01:28]}  Ng5 {[%clk 0:00:34]} 26. exf4 {[%clk 0:01:27]}  Rxf4 {[%clk 0:00:33]} 27. Rb1 {[%clk 0:01:21]}  Ref8 {[%clk 0:00:33]} 28. c5 {[%clk 0:01:13]}  Nf3+ {[%clk 0:00:26]} 29. Bxf3 {[%clk 0:01:13]}  Rxf3 {[%clk 0:00:27]} 30. Kg2 {[%clk 0:01:13]}  Bg5 {[%clk 0:00:15]} 31. cxd6 {[%clk 0:01:08]}  Bh4 {[%clk 0:00:15]} 32. Qxe5 {[%clk 0:00:57]}  Rxf2+ {[%clk 0:00:16]} 33. Rxf2 {[%clk 0:00:52]}  Rxf2+ {[%clk 0:00:16]} 34. Kg1 {[%clk 0:00:51]}  Bf6 {[%clk 0:00:17]} 35. Qe3 {[%clk 0:00:44]}  Bh4 {[%clk 0:00:16]} 36. Rb8+ {[%clk 0:00:40]}  Rf8 {[%clk 0:00:10]} 37. Rxf8+ {[%clk 0:00:30]}  Kxf8 {[%clk 0:00:11]} 38. Qe5 {[%clk 0:00:30]}  Qa7+ {[%clk 0:00:09]} 39. Bd4 {[%clk 0:00:28]}  Qf7 {[%clk 0:00:08]} 40. Bc5 {[%clk 0:00:19]}  Kg8 {[%clk 0:00:07]} 41. g5 {[%clk 0:00:16]}  Qf5 {[%clk 0:00:05]} 42. Qe8+ {[%clk 0:00:09]}  Qf8 {[%clk 0:00:05]} 43. d7 {[%clk 0:00:08]} 1-0


[Site "https://www.chess.com"]

[Event "Titled Tuesday Blitz May 25 2021"]
[White "Aravindh, Chithambaram VR."]
[Black "elcandado"]
[WhiteFideId "5072786"]
[WhiteElo "2600"]
[BlackElo "2640"]
[Result "1-0"]
[Round "03"]
[TimeControl "180+1"]
[Date "2021.05.25"]
[WhiteClock "0:00:35"]
[BlackClock "0:00:16"]

1. Nf3 {[%clk 0:03:00]}  Nf6 {[%clk 0:02:58]} 2. b3 {[%clk 0:03:00]}  d5 {[%clk 0:02:56]} 3. Bb2 {[%clk 0:03:01]}  Bf5 {[%clk 0:02:55]} 4. e3 {[%clk 0:03:00]}  e6 {[%clk 0:02:55]} 5. d4 {[%clk 0:02:55]}  h6 {[%clk 0:02:53]} 6. Bd3 {[%clk 0:02:55]}  Bd6 {[%clk 0:02:44]} 7. O-O {[%clk 0:02:53]}  Nbd7 {[%clk 0:02:39]} 8. c4 {[%clk 0:02:51]}  Bxd3 {[%clk 0:02:33]} 9. Qxd3 {[%clk 0:02:52]}  Ne4 {[%clk 0:02:22]} 10. Nc3 {[%clk 0:02:32]}  Nxc3 {[%clk 0:02:18]} 11. Bxc3 {[%clk 0:02:33]}  c6 {[%clk 0:02:15]} 12. e4 {[%clk 0:02:29]}  dxe4 {[%clk 0:02:00]} 13. Qxe4 {[%clk 0:02:30]}  O-O {[%clk 0:02:00]} 14. Rad1 {[%clk 0:02:26]}  Be7 {[%clk 0:01:43]} 15. Rfe1 {[%clk 0:02:13]}  Bf6 {[%clk 0:01:41]} 16. Ne5 {[%clk 0:02:11]}  Qc7 {[%clk 0:01:32]} 17. f4 {[%clk 0:01:33]}  Rad8 {[%clk 0:01:24]} 18. Rd3 {[%clk 0:01:27]}  Rfe8 {[%clk 0:01:17]} 19. Red1 {[%clk 0:01:25]}  Nf8 {[%clk 0:01:09]} 20. Be1 {[%clk 0:01:19]}  Bxe5 {[%clk 0:01:06]} 21. dxe5 {[%clk 0:01:06]}  Ng6 {[%clk 0:00:55]} 22. Rd6 {[%clk 0:00:57]}  c5 {[%clk 0:00:27]} 23. Bf2 {[%clk 0:00:50]}  b6 {[%clk 0:00:26]} 24. g3 {[%clk 0:00:46]}  Rxd6 {[%clk 0:00:24]} 25. exd6 {[%clk 0:00:46]}  Qd7 {[%clk 0:00:24]} 26. a3 {[%clk 0:00:38]}  Rc8 {[%clk 0:00:23]} 27. b4 {[%clk 0:00:36]}  Rc6 {[%clk 0:00:23]} 28. Qxc6 {[%clk 0:00:34]}  Qxc6 {[%clk 0:00:16]} 29. d7 {[%clk 0:00:35]} 1-0


[Site "https://www.chess.com"]

[Event "Titled Tuesday Blitz May 25 2021"]
[White "Asis Gargatagli, Hipolito"]
[Black "elohunter1999"]
[WhiteFideId "2260735"]
[WhiteElo "2557"]
[BlackElo "2554"]
[Result "1/2-1/2"]
[Round "03"]
[TimeControl "180+1"]
[Date "2021.05.25"]
[WhiteClock "0:00:06"]
[BlackClock "0:00:06"]

1. e4 {[%clk 0:03:00]}  c5 {[%clk 0:02:58]} 2. Nf3 {[%clk 0:03:00]}  Nc6 {[%clk 0:02:58]} 3. Bb5 {[%clk 0:03:00]}  d6 {[%clk 0:02:58]} 4. O-O {[%clk 0:03:00]}  Bd7 {[%clk 0:02:57]} 5. Re1 {[%clk 0:03:00]}  Nf6 {[%clk 0:02:57]} 6. h3 {[%clk 0:02:59]}  e6 {[%clk 0:02:37]} 7. c3 {[%clk 0:02:58]}  Ne5 {[%clk 0:02:35]} 8. Bf1 {[%clk 0:02:57]}  Nxf3+ {[%clk 0:02:35]} 9. Qxf3 {[%clk 0:02:58]}  Bc6 {[%clk 0:02:35]} 10. d4 {[%clk 0:02:58]}  Be7 {[%clk 0:02:26]} 11. dxc5 {[%clk 0:02:58]}  dxc5 {[%clk 0:02:24]} 12. Nd2 {[%clk 0:02:58]}  O-O {[%clk 0:02:14]} 13. Qg3 {[%clk 0:02:58]}  Nh5 {[%clk 0:02:03]} 14. Qe3 {[%clk 0:02:58]}  Bg5 {[%clk 0:02:00]} 15. Qxc5 {[%clk 0:02:58]}  Bxd2 {[%clk 0:01:56]} 16. Rd1 {[%clk 0:02:36]}  Nf6 {[%clk 0:01:36]} 17. Rxd2 {[%clk 0:02:29]}  Nxe4 {[%clk 0:01:35]} 18. Rxd8 {[%clk 0:02:29]}  Nxc5 {[%clk 0:01:35]} 19. Rxf8+ {[%clk 0:02:30]}  Kxf8 {[%clk 0:01:34]} 20. Be3 {[%clk 0:02:31]}  Na4 {[%clk 0:01:31]} 21. Rb1 {[%clk 0:02:18]}  Be4 {[%clk 0:01:27]} 22. Re1 {[%clk 0:02:18]}  Bc6 {[%clk 0:01:20]} 23. Bc1 {[%clk 0:02:07]}  Rd8 {[%clk 0:01:19]} 24. c4 {[%clk 0:02:07]}  Nc5 {[%clk 0:01:05]} 25. Be3 {[%clk 0:01:55]}  b6 {[%clk 0:01:05]} 26. b4 {[%clk 0:01:41]}  Nd3 {[%clk 0:01:03]} 27. Rd1 {[%clk 0:01:37]}  Be4 {[%clk 0:01:03]} 28. f3 {[%clk 0:01:29]}  Bg6 {[%clk 0:01:03]} 29. c5 {[%clk 0:01:29]}  bxc5 {[%clk 0:00:54]} 30. Bxc5+ {[%clk 0:01:29]}  Ke8 {[%clk 0:00:54]} 31. Bxa7 {[%clk 0:01:25]}  Ra8 {[%clk 0:00:41]} 32. Bxd3 {[%clk 0:01:06]}  Rxa7 {[%clk 0:00:38]} 33. Bxg6 {[%clk 0:01:06]}  hxg6 {[%clk 0:00:39]} 34. Rd2 {[%clk 0:01:00]}  Ra4 {[%clk 0:00:35]} 35. Rb2 {[%clk 0:01:00]}  Kd7 {[%clk 0:00:35]} 36. Kf2 {[%clk 0:00:58]}  Kc6 {[%clk 0:00:35]} 37. b5+ {[%clk 0:00:54]}  Kb6 {[%clk 0:00:23]} 38. Ke3 {[%clk 0:00:54]}  e5 {[%clk 0:00:16]} 39. Kd3 {[%clk 0:00:43]}  f5 {[%clk 0:00:12]} 40. Kc3 {[%clk 0:00:44]}  e4 {[%clk 0:00:09]} 41. fxe4 {[%clk 0:00:43]}  Rxe4 {[%clk 0:00:10]} 42. Kd3 {[%clk 0:00:35]}  g5 {[%clk 0:00:10]} 43. g4 {[%clk 0:00:19]}  Rf4 {[%clk 0:00:07]} 44. gxf5 {[%clk 0:00:18]}  Rxf5 {[%clk 0:00:08]} 45. Ke4 {[%clk 0:00:17]}  Rf4+ {[%clk 0:00:08]} 46. Ke5 {[%clk 0:00:17]}  Rh4 {[%clk 0:00:07]} 47. Rb3 {[%clk 0:00:16]}  Ra4 {[%clk 0:00:06]} 48. a3 {[%clk 0:00:15]}  g4 {[%clk 0:00:07]} 49. h4 {[%clk 0:00:15]}  g3 {[%clk 0:00:06]} 50. Rxg3 {[%clk 0:00:15]}  Rxh4 {[%clk 0:00:06]} 51. Rb3 {[%clk 0:00:11]}  Rh5+ {[%clk 0:00:06]} 52. Ke6 {[%clk 0:00:09]}  Rxb5 {[%clk 0:00:07]} 53. Rc3 {[%clk 0:00:09]}  g5 {[%clk 0:00:06]} 54. Kf6 {[%clk 0:00:08]}  Ka5 {[%clk 0:00:06]} 55. Rg3 {[%clk 0:00:08]}  Ka4 {[%clk 0:00:06]} 56. Rxg5 {[%clk 0:00:05]}  Rxg5 {[%clk 0:00:06]} 57. Kxg5 {[%clk 0:00:06]}  Kxa3 {[%clk 0:00:06]} 1/2-1/2


[Site "https://www.chess.com"]